bitfinex/quotes_BTCUSD_20250423
["timestamp","ask_amount","ask_price","bid_price","bid_amount"]
[1745386043313,0.03796994,93332.0,93327.0,0.22501322]
[1745386043512,0.03796994,93332.0,93328.0,0.01071489]
[1745386044202,0.001,93331.0,93328.0,0.01071489]
[1745386044563,0.03996994,93332.0,93328.0,0.01071489]
[1745386044795,0.04096994,93332.0,93327.0,0.01071501]
[1745386045327,0.03996994,93332.0,93327.0,0.01071501]
[1745386045737,0.001,93331.0,93327.0,0.01071501]
[1745386045927,0.001,93331.0,93326.0,0.01071512]
[1745386046135,0.001,93331.0,93327.0,0.01071501]
[1745386046937,0.001,93331.0,93326.0,0.01071512]
[1745386047344,0.001,93331.0,93325.0,0.01071524]
[1745386047565,0.001,93332.0,93323.0,0.01322021]
[1745386047740,0.001,93331.0,93324.0,0.22502249]
[1745386047960,0.001,93331.0,93325.0,0.01071524]
[1745386048342,0.002,93331.0,93325.0,0.01071524]
[1745386048540,0.01071386,93337.0,93325.0,0.01071524]
[1745386048869,0.01071375,93338.0,93325.0,0.01071524]
[1745386048870,0.01071375,93338.0,93326.0,0.01071512]
[1745386049070,0.01077375,93338.0,93326.0,0.01071512]
[1745386049594,0.001,93331.0,93325.0,0.01071524]
[1745386050464,0.002,93331.0,93327.0,0.01071501]
[1745386050687,0.00571386,93337.0,93326.0,0.01071512]
[1745386050904,0.01071397,93336.0,93324.0,0.01071535]
[1745386051146,0.01177375,93338.0,93326.0,0.01071512]
[1745386051368,0.01071386,93337.0,93325.0,0.01071524]
[1745386051559,0.01071386,93337.0,93326.0,0.01071512]
[1745386051703,0.01071386,93337.0,93325.0,0.01071524]
[1745386051929,0.01271386,93337.0,93325.0,0.01071524]
[1745386052673,0.01171386,93337.0,93325.0,0.01071524]
[1745386052883,0.001,93337.0,93329.0,0.01071478]
[1745386053090,0.001,93337.0,93330.0,0.01071466]
[1745386053286,6e-05,93338.0,93329.0,0.01071478]
[1745386053504,6e-05,93338.0,93331.0,0.01071455]
[1745386054041,0.001,93337.0,93331.0,0.01071455]
[1745386054256,6e-05,93338.0,93331.0,0.01071455]
[1745386054486,6e-05,93338.0,93335.0,0.01071409]
[1745386054690,6e-05,93338.0,93332.0,0.2250032]
[1745386054691,0.00306,93338.0,93334.0,0.0107142]
[1745386054903,0.00206,93338.0,93333.0,0.01071432]
[1745386055112,0.001,93337.0,93333.0,0.01071432]
[1745386056164,0.001,93337.0,93334.0,0.0107142]
[1745386056393,0.001,93337.0,93333.0,0.01071432]
[1745386056564,0.001,93337.0,93334.0,0.0107142]
[1745386056768,0.001,93337.0,93333.0,0.01071432]
[1745386057187,0.003,93337.0,93332.0,0.01071443]
[1745386057503,0.002,93337.0,93332.0,0.01071443]
[1745386057705,0.004,93337.0,93332.0,0.01071443]
[1745386058021,0.002,93337.0,93333.0,0.01071432]
[1745386058218,0.004,93337.0,93333.0,0.01071432]
[1745386058425,0.49934,93339.0,93333.0,0.01071432]
[1745386058582,0.49934,93339.0,93334.0,0.0107142]
[1745386058787,0.49934,93339.0,93333.0,0.01071432]
[1745386058990,0.49934,93339.0,93329.0,0.21429559]
[1745386059187,0.49934,93339.0,93333.0,0.01071432]
[1745386059400,0.49934,93339.0,93331.0,0.01071455]
[1745386059600,0.49934,93339.0,93332.0,0.01071443]
[1745386059811,0.002,93337.0,93333.0,0.01071432]
[1745386060061,0.49934,93339.0,93332.0,0.01071443]
[1745386060261,0.002,93337.0,93332.0,0.01071443]
[1745386060695,0.002,93337.0,93330.0,0.01071466]
[1745386060837,0.49934,93339.0,93330.0,0.01071466]
[1745386061048,0.002,93337.0,93330.0,0.01071466]
[1745386061282,0.50134,93339.0,93331.0,0.01071455]
[1745386061446,0.50134,93339.0,93330.0,0.01071466]
[1745386061660,0.002,93337.0,93330.0,0.01071466]
[1745386062504,0.002,93337.0,93331.0,0.01071455]
[1745386062899,0.49934,93339.0,93330.0,0.01071466]
[1745386063307,0.49934,93339.0,93330.0,0.22500793]
[1745386063537,0.49934,93339.0,93331.0,0.01071455]
[1745386063884,0.001,93337.0,93334.0,0.0107142]
[1745386064290,0.49934,93339.0,93334.0,0.0107142]
[1745386064470,0.50034,93339.0,93334.0,0.0107142]
[1745386065222,0.49934,93339.0,93336.0,0.01071397]
[1745386065434,0.002,93337.0,93336.0,0.01071397]
[1745386066245,0.0008504,93344.0,93341.0,0.22498099]
[1745386066459,0.0008504,93344.0,93342.0,0.21426557]
[1745386067003,0.0008504,93344.0,93340.0,0.01071352]
[1745386067431,0.0028504,93344.0,93341.0,0.0107134]
[1745386067637,0.0068504,93344.0,93341.0,0.0107134]
[1745386067849,0.0098504,93344.0,93340.0,0.01071352]
[1745386068050,0.0058504,93344.0,93341.0,0.0107134]
[1745386068463,0.0098504,93344.0,93341.0,0.0107134]
[1745386069131,0.0048504,93344.0,93341.0,0.0107134]
[1745386069330,0.0068504,93344.0,93341.0,0.0107134]
[1745386069705,0.0068504,93344.0,93331.0,0.35071455]
[1745386070020,0.0453,93342.0,93332.0,0.01071443]
[1745386070353,0.0453,93342.0,93335.0,0.01071409]
[1745386071786,0.0453,93342.0,93336.0,0.01071397]
[1745386073086,0.0463,93342.0,93336.0,0.01071397]
[1745386073696,0.0463,93342.0,93337.0,0.01071386]
[1745386074244,0.0413,93342.0,93337.0,0.01071386]
[1745386074649,0.0393,93342.0,93337.0,0.01071386]
[1745386075046,0.0413,93342.0,93337.0,0.01071386]
[1745386075503,0.0403,93342.0,93338.0,0.01071375]
[1745386075734,0.0403,93342.0,93337.0,0.01071386]
[1745386075895,0.0423,93342.0,93338.0,0.01071375]
[1745386076635,0.0403,93342.0,93338.0,0.01071375]
[1745386077230,0.0423,93342.0,93338.0,0.01071375]
[1745386080881,0.0423,93342.0,93339.0,0.01071363]
[1745386081753,0.0403,93342.0,93339.0,0.01071363]
[1745386081926,0.0353,93342.0,93339.0,0.01071363]
[1745386082129,0.0333,93342.0,93339.0,0.01071363]
[1745386082520,0.0353,93342.0,93339.0,0.01071363]
[1745386082719,0.0353,93342.0,93338.0,0.01071375]
[1745386083469,0.0333,93342.0,93339.0,0.01071363]
[1745386083671,0.0313,93342.0,93339.0,0.01071363]
[1745386083809,0.0333,93342.0,93339.0,0.01071363]
[1745386084018,0.0353,93342.0,93338.0,0.01071375]
[1745386084217,0.0333,93342.0,93339.0,0.01071363]
[1745386084619,0.0353,93342.0,93339.0,0.01071363]
[1745386085187,0.0353,93342.0,93337.0,0.01071386]
[1745386085188,0.0333,93342.0,93337.0,0.01071386]
[1745386085389,0.0333,93342.0,93336.0,0.01071397]
[1745386085588,0.0333,93342.0,93337.0,0.01071386]
[1745386085729,0.0333,93342.0,93338.0,0.01071375]
[1745386085977,0.0353,93342.0,93338.0,0.01071375]
[1745386086175,0.0353,93342.0,93337.0,0.01071386]
[1745386086390,0.0353,93342.0,93335.0,0.22499575]
[1745386086594,0.0313,93342.0,93337.0,0.01071386]
[1745386086813,0.15640305,93341.0,93328.0,0.01071489]
[1745386087037,0.53446305,93341.0,93329.0,0.01071478]
[1745386087249,0.54517645,93341.0,93329.0,0.01071478]
[1745386089606,0.01071352,93340.0,93328.0,0.01071489]
[1745386089801,0.10830305,93340.0,93328.0,0.01071489]
[1745386090573,0.11901657,93340.0,93327.0,0.01071501]
[1745386090779,0.11901657,93340.0,93328.0,0.01071489]
[1745386091436,0.11901657,93340.0,93327.0,0.01071501]
[1745386091643,0.11901657,93340.0,93328.0,0.01071489]
[1745386092747,0.01071363,93339.0,93327.0,0.01071501]
[1745386092972,0.11901657,93340.0,93328.0,0.01071489]
[1745386094088,0.11901657,93340.0,93327.0,0.01071501]
[1745386094317,0.11901657,93340.0,93328.0,0.01071489]
[1745386097375,0.11201657,93340.0,93328.0,0.01071489]
[1745386099896,0.10130305,93340.0,93328.0,0.01071489]
[1745386100045,0.01071363,93339.0,93327.0,0.01171501]
[1745386100463,0.11201657,93340.0,93328.0,0.01071489]
[1745386101301,0.01071363,93339.0,93327.0,0.01071501]
[1745386101621,0.01071363,93339.0,93327.0,0.01171501]
[1745386101841,0.11201657,93340.0,93328.0,0.01071489]
[1745386101980,0.11201657,93340.0,93325.0,0.06081432]
[1745386102195,0.01071363,93339.0,93327.0,0.01071501]
[1745386102394,0.01071363,93339.0,93326.0,0.01071512]
[1745386103009,0.01071363,93339.0,93327.0,0.01071501]
[1745386103417,0.01071363,93339.0,93326.0,0.01071512]
[1745386104043,0.01071363,93339.0,93326.0,0.01171512]
[1745386105074,0.11201657,93340.0,93326.0,0.01171512]
[1745386105583,0.01071363,93339.0,93326.0,0.01171512]
[1745386106002,0.01071363,93339.0,93327.0,0.01071501]
[1745386106197,0.01071363,93339.0,93326.0,0.01071512]
[1745386106419,0.01071363,93339.0,93326.0,0.01171512]
[1745386106865,0.01071363,93339.0,93326.0,0.01071512]
[1745386107976,0.01071363,93339.0,93326.0,0.01171512]
[1745386108613,0.11201657,93340.0,93327.0,0.01071501]
[1745386108823,0.01071363,93339.0,93326.0,0.01171512]
[1745386109886,0.01071363,93339.0,93326.0,0.01071512]
[1745386110881,0.01071363,93339.0,93326.0,0.01171512]
[1745386112256,0.10130305,93340.0,93330.0,0.01071466]
[1745386112468,0.10130305,93340.0,93329.0,0.14081236]
[1745386112697,0.10130305,93340.0,93330.0,0.01071466]
[1745386112902,0.37806,93341.0,93329.0,0.14081236]
[1745386113109,0.48636305,93341.0,93330.0,0.01071466]
[1745386113291,0.49707645,93341.0,93329.0,0.14081236]
[1745386113498,0.01071363,93339.0,93329.0,0.13009758]
[1745386113958,0.0453,93338.0,93329.0,0.13009758]
[1745386114123,0.0453,93338.0,93326.0,0.01071512]
[1745386114871,0.0453,93338.0,93327.0,0.01071501]
[1745386115744,0.0453,93338.0,93326.0,0.01071512]
[1745386116828,0.0453,93338.0,93326.0,0.01171512]
[1745386117026,0.0486,93337.0,93326.0,0.001]
[1745386117235,0.0467,93328.0,93326.0,0.001]
[1745386117856,0.0467,93328.0,93320.0,0.01071581]
[1745386119213,0.0467,93328.0,93321.0,0.0107157]
[1745386119427,0.0467,93328.0,93326.0,0.001]
[1745386119765,0.0467,93328.0,93323.0,0.01433256]
[1745386120181,0.0467,93328.0,93323.0,0.01633256]
[1745386120404,0.0397,93328.0,93323.0,0.01633256]
[1745386128195,0.0327,93328.0,93323.0,0.01633256]
[1745386130267,0.0107142,93334.0,93323.0,0.01633256]
[1745386131029,0.0107142,93334.0,93323.0,0.01533256]
[1745386131224,0.0487,93333.0,93323.0,0.01533256]
[1745386131428,0.0487,93333.0,93323.0,0.01433256]
[1745386131631,0.0487,93333.0,93323.0,0.01633256]
[1745386132164,0.0487,93333.0,93323.0,0.01333256]
[1745386132478,0.0487,93333.0,93323.0,0.01633256]
[1745386134212,0.05941432,93333.0,93323.0,0.01633256]
[1745386134957,0.0487,93333.0,93323.0,0.01633256]
[1745386135158,0.05941432,93333.0,93323.0,0.01633256]
[1745386135567,0.0487,93333.0,93323.0,0.01633256]
[1745386135975,0.0417,93333.0,93323.0,0.01633256]
[1745386139326,0.0107142,93334.0,93323.0,0.01633256]
[1745386140409,0.0107142,93334.0,93323.0,0.01433256]
[1745386140839,0.0107142,93334.0,93323.0,0.01533256]
[1745386141178,0.0107142,93334.0,93323.0,0.01633256]
[1745386142721,0.01071409,93335.0,93323.0,0.01633256]
[1745386142922,0.11901714,93335.0,93323.0,0.01633256]
[1745386143499,0.11901714,93335.0,93323.0,0.01433256]
[1745386143703,0.10830305,93335.0,93323.0,0.01433256]
[1745386143919,0.11901714,93335.0,93323.0,0.02604803]
[1745386144120,0.10830305,93335.0,93323.0,0.01633256]
[1745386144357,0.10830305,93335.0,93323.0,0.02704803]
[1745386144919,0.10830305,93335.0,93323.0,0.01633256]
[1745386145122,0.10830305,93335.0,93325.0,0.01071524]
[1745386145430,0.10830305,93335.0,93323.0,0.02704803]
[1745386145654,0.11901714,93335.0,93322.0,0.04924167]
[1745386145852,0.11901714,93335.0,93323.0,0.01071547]
[1745386146483,0.11901714,93335.0,93322.0,0.02317634]
[1745386146709,0.11901714,93335.0,93322.0,0.01246076]
[1745386147157,0.0107142,93334.0,93321.0,0.0107157]
[1745386147345,0.0107142,93334.0,93325.0,0.001]
[1745386147680,0.0107142,93334.0,93322.0,0.01071558]
[1745386148117,0.10830305,93335.0,93323.0,0.01071547]
[1745386148493,0.11901714,93335.0,93322.0,0.01271558]
[1745386148689,0.11901714,93335.0,93322.0,0.02501277]
[1745386151363,0.01071409,93335.0,93322.0,0.02501277]
[1745386152401,0.0486,93337.0,93324.0,0.01071535]
[1745386152621,0.01156334,93345.0,93332.0,0.01071443]
[1745386152831,0.01156346,93344.0,93330.0,0.01071466]
[1745386153038,0.0008504,93344.0,93338.0,0.01071375]
[1745386153454,0.0008504,93344.0,93339.0,0.2142727]
[1745386153657,0.0008504,93344.0,93341.0,0.0107134]
[1745386153873,0.00093539,93344.0,93343.0,0.21426352]
[1745386157157,0.00093539,93344.0,93341.0,0.0107134]
[1745386157360,0.00093539,93344.0,93342.0,0.21426581]
[1745386157965,0.00093539,93344.0,93341.0,0.0107134]
[1745386159090,0.11284659,93350.0,93342.0,0.01071329]
[1745386159431,0.11289658,93350.0,93342.0,0.01071329]
[1745386162241,0.11289658,93350.0,93340.0,0.1408111]
[1745386162727,0.01071248,93349.0,93333.0,0.01071432]
[1745386162934,0.01071294,93345.0,93332.0,0.01071443]
[1745386163146,0.01071283,93346.0,93332.0,0.01071443]
[1745386163378,0.01071271,93347.0,93334.0,0.0107142]
[1745386163592,0.0107126,93348.0,93335.0,0.01071409]
[1745386163806,0.01071271,93347.0,93334.0,0.0107142]
[1745386164024,0.0107126,93348.0,93334.0,0.0107142]
[1745386164389,0.01071248,93349.0,93336.0,0.01071397]
[1745386164738,0.0107126,93348.0,93334.0,0.0107142]
[1745386165161,0.01071271,93347.0,93335.0,0.01071409]
[1745386165391,4.999e-05,93350.0,93337.0,0.01071386]
[1745386165602,0.01076236,93350.0,93340.0,0.13009758]
[1745386165832,4.999e-05,93350.0,93340.0,0.13009758]
[1745386166713,4.999e-05,93350.0,93340.0,0.1408111]
[1745386166923,0.00546313,93352.0,93340.0,0.1408111]
[1745386167066,0.01071225,93351.0,93340.0,4.999e-05]
[1745386167281,0.01071214,93352.0,93340.0,0.13014757]
[1745386170108,0.01071214,93352.0,93340.0,0.14086109]
[1745386171081,0.01156231,93354.0,93341.0,0.0107134]
[1745386171318,0.01071202,93353.0,93340.0,0.14086109]
[1745386172042,0.00738611,93353.0,93340.0,0.14086109]
[1745386172701,0.00738611,93353.0,93340.0,0.13014757]
[1745386174179,0.00738611,93353.0,93340.0,0.14086109]
[1745386174378,0.00738611,93353.0,93340.0,0.13014757]
[1745386174572,0.01156231,93354.0,93340.0,0.13014757]
[1745386174807,0.01071214,93352.0,93340.0,0.14086109]
[1745386175144,0.01071202,93353.0,93340.0,0.14086109]
[1745386176517,0.0008504,93354.0,93341.0,0.0107134]
[1745386176731,0.01156231,93354.0,93341.0,0.0107134]
[1745386177034,0.01156231,93354.0,93342.0,0.01071329]
[1745386177260,0.01156231,93354.0,93341.0,0.0107134]
[1745386177433,0.01156231,93354.0,93342.0,0.01071329]
[1745386178037,0.0008504,93354.0,93341.0,0.0107134]
[1745386178248,0.0008504,93354.0,93342.0,0.01071329]
[1745386179571,0.01071202,93353.0,93341.0,0.0107134]
[1745386179764,0.01156231,93354.0,93341.0,0.0107134]
[1745386180171,0.0008504,93354.0,93341.0,0.0107134]
[1745386180403,0.01156231,93354.0,93342.0,0.01071329]
[1745386180627,0.01071202,93353.0,93341.0,0.0107134]
[1745386181224,0.01071202,93353.0,93340.0,0.14086109]
[1745386182157,0.01156231,93354.0,93340.0,0.13014757]
[1745386182359,0.01071202,93353.0,93340.0,0.14086109]
[1745386182855,0.01156231,93354.0,93340.0,0.14086109]
[1745386182856,0.01156231,93354.0,93341.0,0.0107134]
[1745386183750,0.01071202,93353.0,93340.0,0.14086109]
[1745386185056,0.0008504,93354.0,93341.0,0.0107134]
[1745386185766,0.0008504,93354.0,93342.0,0.01071329]
[1745386186689,0.0008504,93354.0,93343.0,0.01071317]
[1745386186905,0.0008504,93354.0,93341.0,0.0107134]
[1745386187104,0.01156231,93354.0,93341.0,0.0107134]
[1745386188661,0.0008504,93354.0,93343.0,0.01071317]
[1745386188863,0.0008504,93354.0,93342.0,0.01071329]
[1745386189243,0.01156231,93354.0,93342.0,0.01071329]
[1745386190021,0.00456231,93354.0,93342.0,0.01071329]
[1745386190979,0.00456231,93354.0,93341.0,0.0107134]
[1745386191816,0.00456231,93354.0,93342.0,0.01071329]
[1745386193379,0.00456231,93354.0,93340.0,0.13009758]
[1745386193587,0.01071168,93356.0,93343.0,0.01071317]
[1745386193943,0.01071179,93355.0,93342.0,0.01071329]
[1745386194579,0.01071179,93355.0,93341.0,0.0107134]
[1745386194779,0.01071179,93355.0,93343.0,0.002]
[1745386194985,0.01071202,93353.0,93343.0,0.002]
[1745386195173,0.06136822,93357.0,93343.0,0.002]
[1745386195360,0.01071179,93355.0,93343.0,0.002]
[1745386197058,0.01071168,93356.0,93343.0,0.01271317]
[1745386197188,0.01071179,93355.0,93343.0,0.002]
[1745386197692,0.07207978,93357.0,93343.0,0.002]
[1745386198110,0.4287106,93358.0,93348.0,0.0107126]
[1745386198326,0.3789106,93358.0,93347.0,0.14081029]
[1745386198540,0.3789106,93358.0,93347.0,0.13009758]
[1745386198753,0.3789106,93358.0,93347.0,0.01071271]
[1745386198955,0.3789106,93358.0,93348.0,0.0107126]
[1745386199595,0.3789106,93358.0,93347.0,0.01071271]
[1745386199807,0.3789106,93358.0,93348.0,0.0107126]
[1745386200105,0.3789106,93358.0,93347.0,0.01071271]
[1745386200356,0.3789106,93358.0,93346.0,0.01071283]
[1745386201236,0.38962205,93358.0,93345.0,0.01071294]
[1745386201443,0.01071156,93357.0,93344.0,0.01071306]
[1745386201882,0.01071168,93356.0,93343.0,0.01071317]
[1745386202102,0.38962205,93358.0,93344.0,0.01071306]
[1745386203061,0.38962205,93358.0,93341.0,0.0107134]
[1745386203062,0.01071179,93355.0,93341.0,0.0107134]
[1745386203275,0.01071179,93355.0,93341.0,0.003]
[1745386203276,0.22495982,93350.0,93341.0,0.003]
[1745386203488,0.21425867,93346.0,93341.0,0.003]
[1745386203692,0.01071306,93344.0,93341.0,0.003]
[1745386203891,0.0474,93343.0,93341.0,0.003]
[1745386204641,0.21426581,93342.0,93341.0,0.003]
[1745386204847,0.0474,93343.0,93341.0,0.003]
[1745386205422,0.0404,93343.0,93341.0,0.003]
[1745386205762,0.0107134,93341.0,93327.0,0.01071501]
[1745386206014,0.0107134,93341.0,93328.0,0.01071489]
[1745386206216,0.21426581,93342.0,93327.0,8.499e-05]
[1745386206424,0.0107134,93341.0,93327.0,0.0108]
[1745386206627,0.0107134,93341.0,93328.0,0.01071489]
[1745386206774,0.01071329,93342.0,93329.0,0.01071478]
[1745386207188,0.05111317,93343.0,93330.0,0.01071466]
[1745386207368,0.01071329,93342.0,93329.0,0.01071478]
[1745386207792,0.01071329,93342.0,93328.0,0.01071489]
[1745386208139,0.0404,93343.0,93330.0,0.01071466]
[1745386208348,0.0404,93343.0,93331.0,0.01071455]
[1745386208551,0.0404,93343.0,93333.0,0.01071432]
[1745386208689,0.0404,93343.0,93332.0,0.01071443]
[1745386209355,0.0404,93343.0,93340.0,0.002]
[1745386209797,0.10830305,93349.0,93340.0,0.002]
[1745386209999,0.10830305,93349.0,93339.0,0.13009758]
[1745386210179,0.10830305,93349.0,93340.0,0.001]
[1745386210613,0.11901553,93349.0,93340.0,0.001]
[1745386210826,0.10830305,93349.0,93340.0,0.001]
[1745386211482,0.39741202,93353.0,93340.0,0.001]
[1745386211658,0.3867,93353.0,93339.0,0.13009758]
[1745386212159,0.01071214,93352.0,93339.0,0.14081121]
[1745386212376,0.39741202,93353.0,93339.0,0.14081121]
[1745386212802,0.39941202,93353.0,93339.0,0.14081121]
[1745386213015,0.01071214,93352.0,93339.0,0.14081121]
[1745386213221,0.35071202,93353.0,93339.0,0.14081121]
[1745386213641,0.35171202,93353.0,93339.0,0.14081121]
[1745386213852,0.35171202,93353.0,93339.0,0.13009758]
[1745386214062,0.01071225,93351.0,93339.0,0.13009758]
[1745386215039,0.35071225,93351.0,93339.0,0.13009758]
[1745386215266,0.01071248,93349.0,93339.0,0.13009758]
[1745386215458,0.01071237,93350.0,93339.0,0.13009758]
[1745386216201,0.001,93351.0,93344.0,0.01071306]
[1745386216418,0.34,93353.0,93343.0,0.01071317]
[1745386216623,0.34,93353.0,93344.0,0.01071306]
[1745386216829,0.001,93350.0,93343.0,0.01071317]
[1745386217204,0.001,93350.0,93342.0,0.01071329]
[1745386218056,0.37806,93354.0,93342.0,0.01071329]
[1745386218259,0.37806,93354.0,93340.0,0.13009758]
[1745386218520,0.003,93353.0,93340.0,0.13009758]
[1745386218906,0.38877191,93354.0,93340.0,0.13009758]
[1745386219145,0.38106,93354.0,93341.0,0.0107134]
[1745386219331,0.39177191,93354.0,93342.0,0.01071329]
[1745386219565,0.39177191,93354.0,93341.0,0.0107134]
[1745386219788,0.01071214,93352.0,93340.0,0.13009758]
[1745386220781,0.002,93353.0,93340.0,0.13009758]
[1745386220979,0.01071225,93351.0,93340.0,0.13009758]
[1745386221541,0.01071248,93349.0,93340.0,0.13009758]
[1745386221925,0.01071237,93350.0,93340.0,0.13009758]
[1745386222404,0.01071237,93350.0,93337.0,0.01071386]
[1745386223088,0.01171237,93350.0,93337.0,0.01071386]
[1745386223463,0.0483,93347.0,93330.0,0.34439037]
[1745386223690,0.01071306,93344.0,93331.0,0.01071455]
[1745386223886,0.01071329,93342.0,93330.0,0.13009758]
[1745386224043,0.01071317,93343.0,93330.0,0.14081224]
[1745386224269,0.01071306,93344.0,93330.0,0.14081224]
[1745386224986,0.01071306,93344.0,93327.0,0.22509812]
[1745386224987,0.22498192,93341.0,93327.0,8.499e-05]
[1745386225199,0.01071329,93342.0,93330.0,0.13009758]
[1745386225399,0.01071329,93342.0,93330.0,0.13109758]
[1745386225813,0.01071317,93343.0,93330.0,0.13309758]
[1745386226014,0.20414022,93345.0,93330.0,0.14281224]
[1745386226477,0.01071317,93343.0,93330.0,0.14481224]
[1745386226622,0.01071317,93343.0,93330.0,0.14081224]
[1745386227755,0.01071317,93343.0,93330.0,0.14181224]
[1745386227912,0.01071317,93343.0,93330.0,0.14381224]
[1745386228448,0.01071306,93344.0,93331.0,0.01071455]
[1745386228599,0.01071306,93344.0,93330.0,0.14381224]
[1745386229362,0.01071283,93346.0,93332.0,0.01071443]
[1745386229562,0.01071294,93345.0,93332.0,0.01071443]
[1745386231581,0.01071294,93345.0,93332.0,0.001]
[1745386231807,0.01071306,93344.0,93332.0,0.001]
[1745386232027,0.01071306,93344.0,93332.0,0.01171443]
[1745386232242,0.01071306,93344.0,93332.0,0.01371443]
[1745386232860,0.01071306,93344.0,93332.0,0.01171443]
[1745386233091,0.01071306,93344.0,93332.0,0.001]
[1745386233277,0.01071294,93345.0,93332.0,0.01171443]
[1745386233678,0.01071294,93345.0,93332.0,0.01071443]
[1745386233885,0.01071306,93344.0,93331.0,0.01071455]
[1745386234083,0.01071294,93345.0,93332.0,0.01171443]
[1745386234239,0.01071294,93345.0,93332.0,0.01371443]
[1745386234587,0.01071294,93345.0,93332.0,0.01271443]
[1745386234783,0.01071294,93345.0,93332.0,0.01571443]
[1745386235021,0.01071294,93345.0,93333.0,0.01071432]
[1745386235237,0.05901271,93347.0,93334.0,0.0107142]
[1745386235660,0.01071283,93346.0,93333.0,0.01071432]
[1745386236472,0.05901271,93347.0,93333.0,0.01071432]
[1745386236623,0.01071283,93346.0,93334.0,0.0107142]
[1745386236822,0.05901271,93347.0,93334.0,0.0107142]
[1745386237027,0.01071283,93346.0,93333.0,0.01071432]
[1745386237434,0.01071294,93345.0,93334.0,0.001]
[1745386238239,0.01071283,93346.0,93333.0,0.01071432]
[1745386238441,0.01071283,93346.0,93334.0,0.001]
[1745386239358,0.01071294,93345.0,93333.0,0.01071432]
[1745386239805,0.01071283,93346.0,93333.0,0.01071432]
[1745386240589,0.01071283,93346.0,93334.0,0.001]
[1745386241650,0.01071283,93346.0,93333.0,0.01071432]
[1745386242263,0.01071283,93346.0,93334.0,0.001]
[1745386242585,0.05901271,93347.0,93334.0,0.0117142]
[1745386242788,0.01071294,93345.0,93334.0,0.001]
[1745386244032,0.05901271,93347.0,93333.0,0.01171432]
[1745386244648,0.05901271,93347.0,93334.0,0.001]
[1745386245226,0.05901271,93347.0,93333.0,0.01071432]
[1745386245360,0.05901271,93347.0,93333.0,0.01171432]
[1745386245560,0.01071283,93346.0,93333.0,0.01171432]
[1745386247040,0.05901271,93347.0,93334.0,0.0117142]
[1745386247247,0.05901271,93347.0,93334.0,0.001]
[1745386247756,0.01071294,93345.0,93334.0,0.001]
[1745386247959,0.01071294,93345.0,93333.0,0.01171432]
[1745386248275,0.01071294,93345.0,93334.0,0.001]
[1745386248483,0.01071283,93346.0,93334.0,0.001]
[1745386249049,0.01071294,93345.0,93333.0,0.01071432]
[1745386250341,0.01071294,93345.0,93333.0,0.01171432]
[1745386252213,0.01071283,93346.0,93333.0,0.01171432]
[1745386252620,0.01071283,93346.0,93333.0,0.001]
[1745386252621,0.01071294,93345.0,93333.0,0.001]
[1745386252822,0.01071283,93346.0,93333.0,0.01171432]
[1745386253165,0.01071294,93345.0,93332.0,0.01071443]
[1745386253573,0.01071294,93345.0,93333.0,0.01171432]
[1745386254235,0.01071294,93345.0,93333.0,0.01071432]
[1745386255026,0.01071294,93345.0,93333.0,0.01171432]
[1745386255236,0.01071317,93343.0,93333.0,0.001]
[1745386255445,0.01071294,93345.0,93333.0,0.001]
[1745386255651,0.01071294,93345.0,93333.0,0.01171432]
[1745386256026,0.01071283,93346.0,93334.0,0.0107142]
[1745386256221,0.01071294,93345.0,93333.0,0.01171432]
[1745386256482,0.01071294,93345.0,93333.0,0.001]
[1745386256761,0.01071283,93346.0,93333.0,0.01171432]
[1745386256975,0.01071283,93346.0,93333.0,0.01071432]
[1745386257159,0.01071294,93345.0,93334.0,0.001]
[1745386258003,0.01071294,93345.0,93333.0,0.01171432]
[1745386258419,0.01071294,93345.0,93334.0,0.001]
[1745386259468,0.01071283,93346.0,93334.0,0.001]
[1745386259675,0.01071294,93345.0,93332.0,0.01071443]
[1745386259885,0.01071283,93346.0,93333.0,0.001]
[1745386260094,0.01071294,93345.0,93333.0,0.001]
[1745386260283,0.01071294,93345.0,93333.0,0.01171432]
[1745386260497,0.01071294,93345.0,93334.0,0.001]
[1745386261151,0.01071283,93346.0,93334.0,0.001]
[1745386261371,0.01071294,93345.0,93333.0,0.01071432]
[1745386262327,0.01071306,93344.0,93332.0,0.01071443]
[1745386262547,0.01071317,93343.0,93331.0,0.01071455]
[1745386262755,0.01071329,93342.0,93330.0,0.14081224]
[1745386263129,0.01071294,93345.0,93333.0,0.01071432]
[1745386263306,0.01071283,93346.0,93333.0,0.01171432]
[1745386263657,0.01071283,93346.0,93333.0,0.01071432]
[1745386264008,0.01071294,93345.0,93333.0,0.01071432]
[1745386264501,0.01071294,93345.0,93333.0,0.01171432]
[1745386264695,0.01071283,93346.0,93333.0,0.01171432]
[1745386264696,0.05901271,93347.0,93334.0,0.0107142]
[1745386264909,0.0483,93347.0,93334.0,0.22499832]
[1745386265124,0.0107126,93348.0,93335.0,0.01071409]
[1745386265331,0.01071271,93347.0,93335.0,0.01071409]
[1745386265765,0.01071283,93346.0,93337.0,0.13009758]
[1745386265971,0.01454085,93352.0,93337.0,0.34437468]
[1745386266176,0.10830305,93351.0,93337.0,0.34437468]
[1745386266400,0.0008506,93358.0,93351.0,0.01071225]
[1745386266607,0.0008506,93358.0,93351.0,0.22495616]
[1745386267037,0.0008506,93358.0,93353.0,0.21424057]
[1745386267268,0.0008506,93358.0,93356.0,0.21423255]
[1745386267713,0.1104808,93368.0,93356.0,0.22494423]
[1745386267920,0.1104808,93368.0,93360.0,0.21422292]
[1745386268123,0.001,93369.0,93366.0,0.22492127]
[1745386268336,0.001,93369.0,93368.0,0.21420615]
[1745386268545,0.00109,93369.0,93368.0,0.21420615]
[1745386269205,0.00109,93369.0,93368.0,0.22623608]
[1745386269591,0.00109,93369.0,93368.0,0.01202993]
[1745386270012,0.001,93368.0,93367.0,0.0479]
[1745386270370,0.00109,93369.0,93368.0,0.21420615]
[1745386271170,0.00109,93369.0,93368.0,0.21634804]
[1745386271373,0.00109,93369.0,93368.0,0.22805245]
[1745386271607,0.00109,93369.0,93368.0,0.27615245]
[1745386271777,0.00109,93369.0,93368.0,0.76911361]
[1745386272170,0.0008498,93382.0,93371.0,0.21419926]
[1745386272382,0.0008498,93382.0,93371.0,0.42024358]
[1745386272578,0.0008498,93382.0,93371.0,0.75810231]
[1745386273000,0.0008498,93382.0,93371.0,0.76602972]
[1745386273201,0.0008498,93382.0,93381.0,0.60067633]
[1745386273467,0.0008498,93382.0,93381.0,0.70897938]
[1745386275718,0.0008498,93382.0,93381.0,0.71097938]
[1745386275871,0.0008498,93382.0,93381.0,0.71497938]
[1745386277510,0.0008498,93382.0,93381.0,0.71412938]
[1745386284093,0.0008498,93382.0,93381.0,0.71732938]